Cogmind - Beta 13 X1 @@@ ROGUE MODE // 2023.11.29 @ 17:56:34 Player: f3-rnm Result: Destroyed by NL-SZZ(R) with Subdweller Beam Cannon Performance ------------- Evolutions (0) 0 Regions Visited (3) 600 Robots Destroyed (42) 210 Value Destroyed (847) 847 Prototype IDs (0) 0 Alien Tech Used (0) 0 Bonus (-1030) -1030 TOTAL SCORE: 627 Bonus ------- Follower Combat Kills 25 Friendly Fire -1055 Cogmind --------- Core Integrity 0/250 Matter 147/300 Energy 100/100 System Corruption 0% Temperature Cool (9) Movement Treading (240) Ox1 Location -10/Subcaves Parts ------- > --- POWER (1) -------- (None) > --- PROPULSION (2) --- Light Treads > --- UTILITY (2) ------ Large Storage Unit > --- WEAPON (2) ------- Battle Cannon Battle Cannon > --- INVENTORY (15) --- Heat Sink Medium Storage Unit High-capacity Matter Pod (200) Seismic Detector Hacking Suite Subdweller Laser Assault Rifle Assault Rifle Subdweller Machine Gun Barrage Gun Subdweller Shrapnel Launcher Piercing Trap Peak State ------------ > --- POWER ------------ Light Ion Engine > --- PROPULSION ------- Light Treads Light Treads > --- UTILITY ---------- Large Storage Unit > --- WEAPON ----------- Subdweller Beam Cannon Battle Cannon > --- INVENTORY -------- Heat Sink Medium Storage Unit High-capacity Matter Pod Seismic Detector Hacking Suite Subdweller Laser Assault Rifle Assault Rifle Subdweller Machine Gun Barrage Gun Battle Cannon Grenade Launcher Subdweller Shrapnel Launcher Piercing Trap [Rating: 10] Favorites ----------- Power Ion Engine Engine Ion Engine Propulsion Light Treads Treads Light Treads Utility Large Storage Unit Storage Large Storage Unit Processor Targeting Computer Protection Light Armor Plating Weapon Assault Rifle Energy Cannon Subdweller Beam Cannon Ballistic Gun Assault Rifle Ballistic Cannon Battle Cannon Launcher Grenade Launcher Build | -11 -10 -10 -10 ------- Run | Jun Mat Min Sub Slots Evolved . | . . . . Power . | . . . . Propulsion . | . . . . Utility . | . . . . Weapon . | . . . . Parts Attached 26 | 6 3 1 16 Power 4 | 1 1 . 2 Engine 4 | 1 1 . 2 Core . | . . . . Reactor . | . . . . Propulsion 5 | 2 . . 3 Treads 5 | 2 . . 3 Leg . | . . . . Wheel . | . . . . Hover . | . . . . Flight . | . . . . Utility 6 | 1 2 1 2 Device . | . . . . Storage 2 | 1 1 . . Processor 2 | . 1 1 . Hackware . | . . . . Protection 2 | . . . 2 Artifact . | . . . . Weapon 11 | 2 . . 9 Energy Gun . | . . . . Energy Cannon 1 | . . . 1 Ballistic Gun 5 | 2 . . 3 Ballistic Cannon 3 | . . . 3 Launcher 2 | . . . 2 Special Weapon . | . . . . Impact Weapon . | . . . . Slashing Weapon . | . . . . Piercing Weapon . | . . . . Special Melee Weapon . | . . . . Unidentified Prototypes . | . . . . Parts Lost 14 | . 1 . 13 Power 4 | . 1 . 3 Propulsion 4 | . . . 4 Utility 2 | . . . 2 Weapon 4 | . . . 4 Highest Loss Streak 5 | . 1 . 5 To Critical Strikes . | . . . . Average Slot Usage (%) 91 | . 97 100 83 Engine 13 | . 13 14 13 Treads 26 | . 28 28 24 Storage 14 | . 14 14 14 Processor 7 | . 11 14 1 Energy Cannon 4 | . . . 9 Ballistic Gun 21 | . 28 28 13 Ballistic Cannon 1 | . . . 3 Naked Turns . | . . . . Heaviest Build 34 | 14 29 29 34 Greatest Support 40 | 40 40 40 40 Greatest Overweight (x) 1 | . . . 1 Average Overweight (x) . | . . . . Largest Inventory Capacity 15 | 8 15 15 15 Average Capacity 14 | 7 13 15 15 Most Carried 15 | 4 15 15 15 Average Carried 12 | 2 10 15 12 Final Capacity 15 | 8 15 15 15 Final Carried 15 | 3 15 15 12 Class Distribution -------------------- 100% | Mutant Dominant Class ---------------- Mutant | -10/Materials Mutant | -10/Mines Mutant | -10/Subcaves Resources | -11 -10 -10 -10 ----------- Run | Jun Mat Min Sub Matter Collected 1348 | 314 487 172 375 Remotely . | . . . . Salvage Created 1261 | 73 445 219 524 Parts 97 | 6 39 17 35 Haulers Intercepted 2 | . 2 . . Recyclers Shooed 1 | . 1 . . Parts Field Recycled . | . . . . Retrieved Matter . | . . . . Parts Self-Destructed 15 | . . . 15 Prevented . | . . . . Kills | -11 -10 -10 -10 ------- Run | Jun Mat Min Sub Combat Hostiles Destroyed 26 | . 8 4 14 Guns 19 | . 8 4 7 Cannons 4 | . . . 4 AOE 3 | . . . 3 Classes Destroyed 8 | 1 5 1 1 Worker 5 | . 4 1 . Builder 2 | . . 2 . Tunneler 5 | 3 1 1 . Hauler 2 | . 2 . . Operator 1 | . 1 . . Swarmer 8 | . 3 4 1 Grunt 6 | . 5 . 1 Subdweller 12 | . . . 12 Best Kill Streak 8 | 2 8 3 3 Combat Bots Only 6 | . 6 3 3 Max Kills in Single Turn 2 | 1 2 1 1 Gunslinging 1 | . 1 . . Exploded 1 | . . . 1 Melee . | . . . . Uniques/NPCs Destroyed 1 | . . 1 . YI-UF0 (-10/Mines) Combat | -11 -10 -10 -10 -------- Run | Jun Mat Min Sub Damage Taken 1794 | . 257 64 1473 Core 268 | . 41 . 227 Absorbed by Shields . | . . . . Core Remaining (%) 100 | 100 . . . Volleys Fired 151 | 9 44 27 71 Largest 2 | 2 2 2 2 Hottest 119 | 40 40 40 119 Shots Fired 287 | 18 88 54 127 Gun 233 | 18 88 54 73 Cannon 40 | . . . 40 Launcher 14 | . . . 14 Special . | . . . . Kinetic 248 | 18 88 54 88 Thermal 25 | . . . 25 Explosive 14 | . . . 14 Electromagnetic . | . . . . Robot Hit Streak 25 | 4 8 8 25 Robot Miss Streak 3 | 2 3 3 1 Penetration Max . | . . . . Secondary Targets 5 | . 4 . 1 Max Gunslinging Chain 1 | . 1 . 1 Shots Hit Robots 185 | 10 57 35 83 Core Hits 74 | 3 23 13 35 Critical Kills . | . . . . Critical Parts Destroyed . | . . . . Critical Strikes 1 | . . . 1 Destroy 1 | . . . 1 Melee Attacks . | . . . . Impact . | . . . . Slashing . | . . . . Piercing . | . . . . Sneak Attacks . | . . . . Combat Hostiles . | . . . . Follow-up Attacks . | . . . . Damage Inflicted 3430 | 120 815 451 2044 Guns 1923 | 120 815 437 551 Cannons 419 | . . . 419 Explosions 1074 | . . . 1074 Melee . | . . . . Ramming 14 | . . 14 . Kinetic 2073 | 120 815 437 701 Thermal 269 | . . . 269 Explosive 1074 | . . . 1074 Electromagnetic . | . . . . Impact . | . . . . Slashing . | . . . . Piercing . | . . . . Highest Corruption . | . . . . Average Corruption . | . . . . Corruption Purged . | . . . . Corruption Blocked . | . . . . Overload Shots . | . . . . Overflow Damage . | . . . . Projectiles . | . . . . Explosions . | . . . . Melee . | . . . . Knockbacks 2 | . . . 2 Impact . | . . . . Kinetic 2 | . . . 2 Secondary . | . . . . Self-Inflicted Damage 71 | . . . 71 Shots 4 | . . . 4 Rammed 1 | . . 1 . Targets Rammed 1 | . . 1 . Kicked . | . . . . Crushed . | . . . . Highest Temperature 5 | . 5 . . Average Temperature 5 | . 5 . . Received Heat Transfer 339 | . 96 . 243 Siege Activations . | . . . . Robots Corrupted . | . . . . Combat Hostiles . | . . . . Parts Fried . | . . . . Impact Corruptions . | . . . . Robots Melted . | . . . . Combat Hostiles . | . . . . Parts Melted . | . . . . Heat Transferred 370 | . . . 370 Parts Sabotaged . | . . . . Parts Stolen . | . . . . Parts Stripped . | . . . . Power Chain Reactions . | . . . . Missiles Intercepted . | . . . . Alert | -11 -10 -10 -10 ------- Run | Jun Mat Min Sub Peak Influence 162 | 15 162 115 . Initial 40 | . 9 40 . Average 45 | 6 69 30 . Maximum Alert Level . | . . . . Low Security (%) 100 | 100 100 100 . Level 1 . | . . . . Level 2 . | . . . . Level 3 . | . . . . Level 4 . | . . . . Level 5 . | . . . . High Security . | . . . . Max Security . | . . . . Squads Dispatched 1 | . 1 . . Investigation 1 | . 1 . . Extermination . | . . . . Reinforcement . | . . . . Assault . | . . . . Garrison . | . . . . Intercept . | . . . . Searches Triggered . | . . . . Construction Impeded . | . . . . Haulers Reinforced . | . . . . Active Scanning Responses . | . . . . Cargo Convoy Interrupts . | . . . . Stealth | -11 -10 -10 -10 --------- Run | Jun Mat Min Sub Distress Signals . | . . . . Communications Jammed . | . . . . Distress Signals . | . . . . Times Spotted 37 | . 14 4 19 Peak Tracking Total 3 | . 3 3 2 Tactical Retreats 1 | . . . 1 Traps | -11 -10 -10 -10 ------- Run | Jun Mat Min Sub Traps Triggered 3 | . 1 . 2 Indirectly . | . . . . Trap Hack Attempts . | . . . . Triggered . | . . . . Disarmed . | . . . . Reprogrammed . | . . . . Reused . | . . . . Traps Extracted . | . . . . Installed 3 | . . 3 . Triggered . | . . . . Most Traps Carried 1 | . . . 1 Machines | -11 -10 -10 -10 ---------- Run | Jun Mat Min Sub Machines Disabled 1 | . . . 1 Max in Single Turn . | . . . . Machines Repaired . | . . . . Machines Sabotaged . | . . . . Overloaded Fab Kills . | . . . . Hacking | -11 -10 -10 -10 --------- Run | Jun Mat Min Sub Machines Accessed 5 | . 4 . 1 Terminals 4 | . 4 . . Fabricators . | . . . . Repair Stations . | . . . . Recycling Units . | . . . . Scanalyzers . | . . . . Garrison Access . | . . . . Total Hacks 11 | . 9 . 2 Successful 4 | . 2 . 2 Failed 7 | . 7 . . Catastrophic 1 | . 1 . . Database Lockouts . | . . . . Manual 9 | . 9 . . Terminals 9 | . 9 . . Fabricators . | . . . . Repair Stations . | . . . . Recycling Units . | . . . . Scanalyzers . | . . . . Garrison Access . | . . . . Terminal Hacks 4 | . 2 . 2 Record 2 | . . . 2 Robot Analysis 2 | . 2 . . Fabricator Hacks . | . . . . Repair Station Hacks . | . . . . Recycling Unit Hacks . | . . . . Scanalyzer . | . . . . Garrison Access Hacks . | . . . . Unauthorized Hacks . | . . . . Terminals . | . . . . Fabricators . | . . . . Repair Stations . | . . . . Recycling Units . | . . . . Scanalyzers . | . . . . Garrison Access . | . . . . Data Cores Recovered . | . . . . Used . | . . . . Hacking Detections 3 | . 3 . . Full Trace Events 1 | . 1 . . Feedback Events . | . . . . Feedback Blocked . | . . . . Robot Schematics Acquired . | . . . . Robots Built . | . . . . Authchips . | . . . . Time . | . . . . Total Robot Build Rating . | . . . . Part Schematics Acquired . | . . . . Parts Built . | . . . . Authchips . | . . . . Time . | . . . . Total Part Build Rating . | . . . . Parts Repaired . | . . . . Time . | . . . . Parts Recycled . | . . . . Recycled Matter . | . . . . Retrieved Matter . | . . . . Retrieved Components . | . . . . Parts Scanalyzed . | . . . . Part Schematics Acquired . | . . . . Parts Damaged . | . . . . Bothacking | -11 -10 -10 -10 ------------ Run | Jun Mat Min Sub Used RIF Installer . | . . . . Robots Hacked . | . . . . Non-combat . | . . . . Combat . | . . . . Robot Hacks Applied . | . . . . Relay Couplers Released . | . . . . Fabnet Peak Effective % . | . . . . Robots Rewired . | . . . . Allies Hacked . | . . . . Hacks Repelled . | . . . . Allies | -11 -10 -10 -10 -------- Run | Jun Mat Min Sub Total Allies 1 | . . 1 . Largest Group 1 | . . 1 1 Highest-Rated Group 31 | . . 31 31 Highest-Rated Ally 31 | . . 31 31 Total Orders . | . . . . Ally Attacks 7 | . . . 7 Total Damage 62 | . . . 62 Kills 1 | . . . 1 Allies Corrupted . | . . . . Allies Melted . | . . . . Intel | -11 -10 -10 -10 ------- Run | Jun Mat Min Sub Robot Analysis Total 2 | . 2 . . Derelict Logs Recovered 1 | . . 1 . Drone Launches . | . . . . Drone Recoveries . | . . . . Exploration | -11 -10 -10 -10 ------------- Run | Jun Mat Min Sub Turns Passed 4495 | 167 1092 1250 1986 Spaces Moved 2360 | 88 589 716 967 Core 13 | 13 . . . Treads 2347 | 75 589 716 967 Legs . | . . . . Wheels . | . . . . Hover . | . . . . Flight . | . . . . Fastest Speed 50 | 50 160 160 160 Average Speed 166 | 143 160 160 177 Slowest Speed 240 | 160 160 160 240 Overloaded Moves . | . . . . Propulsion Burnouts . | . . . . Robots Hopped . | . . . . Cave-ins Triggered . | . . . . Exploration Rate (%) 64 | 5 86 99 69 Regions Visited 3 Branch Regions 2 Pre-discovered Areas 2 | . . 2 . Known Exits Taken 1 | . 1 . . Unknown Exits Taken 2 | 1 . 1 . Scrap Searched 7 | . . 1 6 Spaces Dug 3 | . . . 3 Terrain Destroyed 35 | . . . 35 Melee . | . . . . Projectile 2 | . . . 2 AOE 33 | . . . 33 Terrain Rammed . | . . . . Walls Destroyed . | . . . . Machines Disabled . | . . . . Actions | -11 -10 -10 -10 --------- Run | Jun Mat Min Sub Total 2635 | 111 651 766 1107 Wait 60 | . 2 16 42 Move 2357 | 87 588 715 967 Hop . | . . . . Pick Up 32 | 9 13 1 9 Fast Attach 2 | . 1 1 . Attach 18 | 6 1 . 11 Detach . | . . . . Swap 6 | . 1 . 5 Drop 5 | . 1 2 2 Fire 151 | 9 44 27 71 Melee . | . . . . Ram . | . . . . Kick . | . . . . Crush 1 | . . 1 . Escape Stasis . | . . . . Rewire . | . . . . Trap 3 | . . 3 . Miscellaneous . | . . . . Route ------- -11/Junkyard -10/Materials (discovered 5 exits: *Mat x3 / *Min x2) -10/Mines (discovered 3 exits: *Mat x2 / *Sub) -10/Subcaves (discovered 2 exits: [*Mat x2]) History --------- Turn | Location | Event 5 | -11/Junkyard | Discovered new exit (range 15) 168 | -11/Junkyard | Entered Materials 302 | -10/Materials | Build established: Mutant 319 | -10/Materials | Discovered new exit (range 12) 381 | -10/Materials | Discovered new exit (range 13) 514 | -10/Materials | Identified exit to Materials 716 | -10/Materials | Discovered exit to Materials (range 12) 1001 | -10/Materials | Discovered new exit (range 10) 1015 | -10/Materials | Identified exit to Mines 1133 | -10/Materials | Discovered exit to Materials (range 10) 1260 | -10/Materials | Entered Mines 1339 | -10/Mines | Deemed a non-threat by the Exiles lab entrance 1460 | -10/Mines | Discovered exit to Materials (range 9) 1678 | -10/Mines | YI-UF0 nonchalantly dropped a Grenade Launcher on the ground 1705 | -10/Mines | Found a hidden stash of uninstalled traps 1872 | -10/Mines | Learned location of Storage (-9) 1898 | -10/Mines | Escorted by a lone wolf Derelict 1902 | -10/Mines | Discovered exit to Materials (range 5) 2185 | -10/Mines | Destroyed YI-UF0 2231 | -10/Mines | Discovered new exit (range 15) 2510 | -10/Mines | Entered Subcaves 2510 | -10/Subcaves | Accompanied by 1 ally 2820 | -10/Subcaves | Lost 3 parts (1p2w) 2873 | -10/Subcaves | Shifting Twisted Machinery released Sub. Machine Gun 2882 | -10/Subcaves | Shifting Twisted Machinery released Mak. Flight Unit 2978 | -10/Subcaves | Core integrity fell below 50% 3033 | -10/Subcaves | Lost 5 parts (1p2n2u) 3087 | -10/Subcaves | Discovered new exit (range 13) 3147 | -10/Subcaves | Visited Clippyterm 3152 | -10/Subcaves | Learned Research machine intel 3334 | -10/Subcaves | Shifting Twisted Machinery released Barrage Gun 3595 | -10/Subcaves | Shifting Twisted Machinery released Sub. Power Source 3611 | -10/Subcaves | Shifting Twisted Machinery released Sub. Shrapnel Launcher 3611 | -10/Subcaves | Discovered new exit (range 9) 3975 | -10/Subcaves | Lost 3 parts (2n1w) 4474 | -10/Subcaves | Core integrity fell below 20% 4496 | -10/Subcaves | Destroyed by NL-SZZ(R) with Subdweller Beam Cannon Last Messages --------------- 03907_ Triggered Piercing Trap. 03907_ Spikes shoot up from the floor. 03907_ Critical hit (Impale). 03907_ Lgt. Treads destroyed. 03910_ Triggered Shrapnel Trap. 03910_ An expanding cloud of shrapnel blasts out in all directions. 03934_ Lgt. Treads destroyed. 03937_ The unstable cave ceiling collapses. 03937_ XL-EXR(R) destroyed. 03943_ Destroyed Scrap Shield. 03944_ Grenade Launcher destroyed. 03946_ M9-YZT(R) destroyed. 03960_ The unstable cave ceiling collapses. 04223_ Acquired 12 matter. 04302_ AH-3VD(u) deconstructs Twisted Machinery. 04477_ Sub. Beam Cannon destroyed. 04482_ NL-SZZ(R) knocked back. 04485_ NZ-00C(R) destroyed. 04491_ NL-SZZ(R) knocked back. 04493_ Lgt. Ion Engine destroyed. Map ----- +----------------------------------------------------+ | ???????????????????????????????????##### #????? | | ??????????????????????????????????## #?## #????? | | ??????????????????????????????????# #?# #####?? | | ??????????????????????????????????# ?# #?? | | ???????????????????????????????????# # # #?? | | ???????????????????????????????????# ### #?? | | ?????????????????????????????????????# %* ##?? | | ?????????????????????????????????????## !!=! ##?? | | ??????????????????????????????????????## & & #?? | | ??????????????????????????????????????## #?? | | ??????????????????????????????????????# #?? | | ?????????????????????????????????????## ##?? | | ?????????????????????????????????????# #### | | ?????????????????????????????????????# & * | | ?????????????????????????????????????## !&= | | ??????????????????????????????????????## | | ???????????????????????????????????????### | | ?????????????????????????????????????????# | | ?????????????????????????????????????????# | | ??????????????????????????????????????? | | ????????????????????????????????????? | | ??????????????????????????????#??????# # | | ????????????????????????????? ##?????# ### ## | | ??????????#????????####??#### #?????##?# #####? | | ?????????#"""?????## %#### # #????????## #???? | | ?????????## ##### % ; @ [#?????????## #???? | | ???????"" %R%* = #?????????# #????? | | ??????????? """ ! ###???###### #????? | | ????????????###" % % #!# ##??#" " ##????? | | ??????????????# ## ! #?##" " "##???? | | ??????????????#??## ###"" "" "" ##??? | | ?????????????????# ### # "" """ #??# | | ?????????????????# ##### "# """"" ##?# | | ?????????????????# ### # ## #;" """### #?# | | ?????????????????# ### """#?## ### | | ?????????????????## ??# ## # ""##""##??## # | | ?????????????????# #### ###### "#####????# | | ?????????????????## #??# #???????#" ! | | ?????###??????????#### # ##### "#??????# | | ????## #????????### # # # # ###"" "?????# = | | ##### #????????# ### ""#??###" | | # # ##???????## # # ""##?# "#??# " | | ##???????# ###### # # # ""#??# ""??### | | # ##??????# ##???####### "##???#""???## | | # ######## ####????## ###### #??# | | ## ## #???## "##"###???# # | | ##???# """" #????# # ## | | #????### """" #????##" | | # #### # #?????### ##?????# | | # ###??#### #??????## ####?????##" "" | +----------------------------------------------------+ Best States ------------- Heat Dissipation 25 Energy Generation 10 Energy Capacity 250 Matter Stores 300 Matter Capacity 300 Sight Range 16 Terrain Scan Density 10 Armor Coverage 150 Evasion (%) 50 Targeting Accuracy 5 Recoil Reduction 2 Item Schematics ----------------- None Robot Schematics ------------------ None Fabricated ------------ Nothing Alien Tech Used ----------------- None Achievements -------------- None Challenges ------------ None Game ------ Seed TractorGunGun Manual? 0 Play Time 00:15:49 Cumulative 116.1 hours Start 2023.11.29 @ 17:42:23 End 2023.11.29 @ 17:56:34 Sessions 1 Manual Loads 0 Difficulty Rogue Special Mode None Game No. 127 Rogue 91 Adventurer 36 Explorer 0 Win Type - Total 7 Types 2/0/5/0/0/0/0/0/0 Lore% 53 Gallery% 75 Achievement% 62 Wizard Run 0 Options --------- ASCII 0 Keyboard 0 Movement Mouse Keybinds 0 Fullscreen 1 Font 18/SmallcapsGlow Map View 76x50 Tactical HUD 1 Map Filters NONE Filters NONE Steam 1 RUN: 7fb06cbd-f27a-4069-853a-72792356ef57